Cogmind - Beta 16 @@@ ROGUE MODE // 2025.11.22 @ 11:54:10 Player: Jimothy Jimone Result: Destroyed by Q1-X6L(R) with Subdweller Laser Performance ------------- Evolutions (0) 0 Regions Visited (2) 400 Robots Destroyed (5) 25 Value Destroyed (110) 110 Prototype IDs (0) 0 Alien Tech Used (0) 0 Bonus (0) 0 TOTAL SCORE: 535 Bonus ------- None Cogmind --------- Core Integrity 0/250 Matter 238/300 Energy 100/100 System Corruption 0% Temperature Cool (6) Movement Walking (120) Location -10/Subcaves Parts ------- > --- POWER (1) -------- (None) > --- PROPULSION (2) --- Aluminum Leg > --- UTILITY (2) ------ (None) > --- WEAPON (2) ------- Subdweller Machine Gun > --- INVENTORY (5) ---- Ion Engine Scrap Shield Fragment (41) Peak State ------------ > --- POWER ------------ Ion Engine > --- PROPULSION ------- Wheel Compact Wheel > --- UTILITY ---------- Scrap Shield > --- WEAPON ----------- Assault Rifle Light Assault Rifle > --- INVENTORY -------- Ion Engine Aluminum Leg Aluminum Leg Small Storage Unit Medium Laser [Rating: 9] Favorites ----------- Power Ion Engine Engine Ion Engine Propulsion Wheel Leg Aluminum Leg Wheel Wheel Utility Small Storage Unit Storage Small Storage Unit Protection Scrap Shield Weapon Assault Rifle Energy Gun Medium Laser Ballistic Gun Assault Rifle Build | -11 -10 -10 ------- Run | Yrd Mat Sub Slots Evolved . | . . . Power . | . . . Propulsion . | . . . Utility . | . . . Weapon . | . . . Parts Attached 11 | 6 . 5 Power 1 | 1 . . Engine 1 | 1 . . Core . | . . . Reactor . | . . . Propulsion 4 | 2 . 2 Treads . | . . . Leg 2 | . . 2 Wheel 2 | 2 . . Hover . | . . . Flight . | . . . Utility 2 | 1 . 1 Device . | . . . Storage 1 | 1 . . Processor . | . . . Hackware . | . . . Protection 1 | . . 1 Artifact . | . . . Weapon 4 | 2 . 2 Energy Gun 1 | . . 1 Energy Cannon . | . . . Ballistic Gun 3 | 2 . 1 Ballistic Cannon . | . . . Launcher . | . . . Special Weapon . | . . . Impact Weapon . | . . . Slashing Weapon . | . . . Piercing Weapon . | . . . Special Melee Weapon . | . . . Unidentified Prototypes . | . . . Parts Lost 8 | . . 8 Power 1 | . . 1 Propulsion 3 | . . 3 Utility 1 | . . 1 Weapon 3 | . . 3 Highest Loss Streak 8 | . . 8 To Critical Strikes . | . . . Average Backups 3 | 1 4 3 Power . | . 1 1 Propulsion 1 | . 2 1 Utility . | . . . Weapon . | . 1 . Tool/Special . | . . . Unused Backups 1 | . . 1 Power 1 | . . 1 Propulsion . | . . . Utility . | . . . Weapon . | . . . Tool/Special . | . . . Average Slot Usage (%) 72 | . 85 66 Engine 11 | . 14 10 Leg 2 | . . 3 Wheel 22 | . 28 19 Storage 5 | . 14 . Protection 4 | . . 7 Ballistic Gun 24 | . 28 23 Peak Build Rating 9 | 6 6 9 Average Rating 5 | 4 6 6 On Entrance 4 | . 6 6 Avg Prop Armor Cover (%) . | . . . Naked Turns . | . . . Heaviest Build 26 | 13 13 26 Greatest Support 26 | 26 26 26 Greatest Overweight (x) 4 | 4 . . Average Overweight (x) . | . . . Largest Inventory Capacity 8 | 8 8 8 Average Capacity 6 | 7 8 5 Most Carried 5 | 4 4 5 Average Carried 3 | 1 4 4 Final Capacity 8 | 8 8 5 Final Carried 4 | 4 4 2 Class Distribution -------------------- 100% | Mutant Dominant Class ---------------- Mutant | -10/Materials Mutant | -10/Subcaves Resources | -11 -10 -10 ----------- Run | Yrd Mat Sub Matter Collected 258 | 185 . 73 Remotely . | . . . Salvage Created 119 | . . 119 Parts 13 | . . 13 Haulers Intercepted . | . . . Recyclers Shooed . | . . . Parts Field Recycled . | . . . Retrieved Matter . | . . . Parts Self-Destructed 8 | . . 8 Prevented . | . . . Parts Restored . | . . . Kills | -11 -10 -10 ------- Run | Yrd Mat Sub Combat Hostiles Destroyed 5 | . . 5 Guns 5 | . . 5 Classes Destroyed 2 | . . 2 Swarmer 3 | . . 3 Subdweller 2 | . . 2 Best Kill Streak 4 | . . 4 Combat Bots Only 4 | . . 4 Max Kills in Single Turn 1 | . . 1 Gunslinging . | . . . Exploded . | . . . Melee . | . . . Uniques/NPCs Destroyed . | . . . Combat | -11 -10 -10 -------- Run | Yrd Mat Sub Hostile Shots Fired 79 | . . 79 Missed 29 | . . 29 Hits 50 | . . 50 Projectile 50 | . . 50 Critical Strikes 1 | . . 1 Damage Taken 989 | . . 989 Core 266 | . . 266 Absorbed by Shields . | . . . Core Remaining (%) 100 | 100 . . Volleys Fired 16 | . . 16 Largest 2 | . . 2 Hottest 70 | . . 70 Shots Fired 26 | . . 26 Gun 26 | . . 26 Cannon . | . . . Launcher . | . . . Special . | . . . Kinetic 22 | . . 22 Thermal 4 | . . 4 Explosive . | . . . Electromagnetic . | . . . Robot Hit Streak 9 | . . 9 Robot Miss Streak 2 | . . 2 Penetration Max . | . . . Secondary Targets 2 | . . 2 Max Gunslinging Chain 1 | . . 1 Shots Hit Robots 19 | . . 19 Core Hits 8 | . . 8 Critical Kills . | . . . Critical Parts Destroyed . | . . . Critical Strikes . | . . . Melee Attacks . | . . . Impact . | . . . Slashing . | . . . Piercing . | . . . Sneak Attacks . | . . . Combat Hostiles . | . . . Follow-up Attacks . | . . . Damage Inflicted 271 | . . 271 Guns 271 | . . 271 Cannons . | . . . Explosions . | . . . Melee . | . . . Ramming . | . . . Kinetic 221 | . . 221 Thermal 50 | . . 50 Explosive . | . . . Electromagnetic . | . . . Impact . | . . . Slashing . | . . . Piercing . | . . . Highest Corruption . | . . . Average Corruption . | . . . Corruption Purged . | . . . Corruption Blocked . | . . . Overload Shots . | . . . Overflow Damage . | . . . Projectiles . | . . . Explosions . | . . . Melee . | . . . Knockbacks . | . . . Impact . | . . . Kinetic . | . . . Secondary . | . . . Self-Inflicted Damage . | . . . Shots . | . . . Rammed . | . . . Targets Rammed . | . . . Kicked . | . . . Crushed . | . . . Highest Temperature . | . . . Average Temperature . | . . . Received Heat Transfer 186 | . . 186 Siege Activations . | . . . Martial Activations . | . . . Shielding Activations . | . . . Robots Disrupted . | . . . Combat Hostiles . | . . . Robots Corrupted . | . . . Combat Hostiles . | . . . Parts Fried . | . . . Impact Corruptions . | . . . Robots Melted . | . . . Combat Hostiles . | . . . Parts Melted . | . . . Heat Transferred 148 | . . 148 Parts Sabotaged . | . . . Parts Stolen . | . . . Parts Stripped . | . . . Power Chain Reactions . | . . . Alert | -11 -10 -10 ------- Run | Yrd Mat Sub Maximum Alert Level . | . . . Low Security (%) 100 | 100 100 . Level 1 . | . . . Level 2 . | . . . Level 3 . | . . . Level 4 . | . . . Level 5 . | . . . High Security . | . . . Max Security . | . . . Peak Influence . | . . . Initial . | . . . Average . | . . . Influence Increases 70 | . . 70 Destroy 0b10 Robot/C 60 | . . 60 Destroy Leader 10 | . . 10 Influence Decreases 70 | . . 70 Time Decay 20 | . . 20 Lost Part 50 | . . 50 Squads Dispatched . | . . . Investigation . | . . . Extermination . | . . . Reinforcement . | . . . Assault . | . . . Garrison . | . . . Intercept . | . . . Searches Triggered . | . . . Construction Impeded . | . . . Haulers Reinforced . | . . . Active Scanning Responses . | . . . Cargo Convoy Interrupts . | . . . Stealth | -11 -10 -10 --------- Run | Yrd Mat Sub Distress Signals . | . . . Communications Jammed . | . . . Distress Signals . | . . . Times Spotted 14 | . . 14 Peak Tracking Total 9 | . . 9 Tactical Retreats . | . . . Traps | -11 -10 -10 ------- Run | Yrd Mat Sub Traps Triggered . | . . . Indirectly . | . . . Trap Hack Attempts . | . . . Triggered . | . . . Disarmed . | . . . Reprogrammed . | . . . Reused . | . . . Traps Extracted . | . . . Installed . | . . . Triggered . | . . . Machines | -11 -10 -10 ---------- Run | Yrd Mat Sub Machines Disabled . | . . . Max in Single Turn . | . . . Machines Repaired . | . . . Machines Dismantled . | . . . Machines Sabotaged . | . . . Overloaded Fab Kills . | . . . Hacking | -11 -10 -10 --------- Run | Yrd Mat Sub Machines Accessed . | . . . Terminals . | . . . Fabricators . | . . . Repair Stations . | . . . Recycling Units . | . . . Scanalyzers . | . . . Garrison Access . | . . . Total Hacks . | . . . Successful . | . . . Failed . | . . . Catastrophic . | . . . Database Lockouts . | . . . Manual . | . . . Terminals . | . . . Fabricators . | . . . Repair Stations . | . . . Recycling Units . | . . . Scanalyzers . | . . . Garrison Access . | . . . Terminal Hacks . | . . . Fabricator Hacks . | . . . Repair Station Hacks . | . . . Recycling Unit Hacks . | . . . Scanalyzer . | . . . Garrison Access Hacks . | . . . Unauthorized Hacks . | . . . Terminals . | . . . Fabricators . | . . . Repair Stations . | . . . Recycling Units . | . . . Scanalyzers . | . . . Garrison Access . | . . . Data Cores Recovered . | . . . Used . | . . . Hacking Detections . | . . . Full Trace Events . | . . . Feedback Events . | . . . Feedback Blocked . | . . . Robot Schematics Acquired . | . . . Robots Built . | . . . Authchips . | . . . Time . | . . . Total Robot Build Rating . | . . . Part Schematics Acquired . | . . . Parts Built . | . . . Authchips . | . . . Time . | . . . Total Part Build Rating . | . . . Part Studies Acquired . | . . . Parts Repaired . | . . . Time . | . . . Parts Recycled . | . . . Recycled Matter . | . . . Retrieved Matter . | . . . Retrieved Components . | . . . Parts Scanalyzed . | . . . Part Schematics Acquired . | . . . Parts Damaged . | . . . Bothacking | -11 -10 -10 ------------ Run | Yrd Mat Sub Used RIF Installer . | . . . Robots Hacked . | . . . Non-combat . | . . . Combat . | . . . Robot Hacks Applied . | . . . Relay Couplers Released . | . . . Fabnet Peak Effective % . | . . . Robots Rewired . | . . . Allies Hacked . | . . . Hacks Repelled . | . . . Allies | -11 -10 -10 -------- Run | Yrd Mat Sub Total Allies . | . . . Largest Group . | . . . Highest-Rated Group . | . . . Highest-Rated Ally . | . . . Total Orders . | . . . Ally Attacks . | . . . Total Damage . | . . . Kills . | . . . Allies Corrupted . | . . . Allies Melted . | . . . Intel | -11 -10 -10 ------- Run | Yrd Mat Sub Active Infowar (turns) . | . . . Robot Analysis Total . | . . . Derelict Logs Recovered . | . . . Drone Launches . | . . . Drone Recoveries . | . . . Exploration | -11 -10 -10 ------------- Run | Yrd Mat Sub Turns Passed 370 | 70 100 200 Spaces Moved 319 | 50 112 157 Core 17 | 17 . . Treads . | . . . Legs 23 | . . 23 Wheels 279 | 33 112 134 Hover . | . . . Flight . | . . . Fastest Speed 50 | 50 90 80 Average Speed 95 | 113 90 93 Slowest Speed 250 | 250 90 120 Overloaded Moves . | . . . Propulsion Burnouts . | . . . Robots Hopped . | . . . Potential Cave-ins . | . . . Cave-ins Triggered . | . . . Exploration Rate (%) 8 | 4 10 12 Regions Visited 2 Branch Regions 1 Pre-discovered Areas . | . . . Known Exits Taken . | . . . Unknown Exits Taken 2 | 1 1 . Scrap Searched . | . . . Spaces Dug . | . . . Terrain Destroyed . | . . . Melee . | . . . Projectile . | . . . AOE . | . . . Terrain Rammed . | . . . Walls Destroyed . | . . . Machines Disabled . | . . . Actions | -11 -10 -10 --------- Run | Yrd Mat Sub Total 355 | 59 111 185 Wait 1 | . . 1 Move 317 | 49 111 157 Hop . | . . . Pick Up 5 | 4 . 1 Fast Attach 8 | 6 . 2 Attach 3 | . . 3 Detach 1 | . . 1 Swap . | . . . Drop 1 | . . 1 Fire 16 | . . 16 Melee . | . . . Ram . | . . . Kick . | . . . Crush . | . . . Escape Stasis . | . . . Rewire 3 | . . 3 Trap . | . . . Miscellaneous . | . . . Route ------- -11/Scrapyard -10/Materials -10/Subcaves History --------- Turn | Location | Event 20 | -11/Scrapyard | Discovered new exit (range 16) 71 | -11/Scrapyard | Entered Materials 163 | -10/Materials | Discovered new exit (range 8) 171 | -10/Materials | Entered Subcaves 172 | -10/Subcaves | Approached by a straggling Scientist 227 | -10/Subcaves | Shifting Twisted Machinery released Sub. Monowheel 270 | -10/Subcaves | Ambushed by swarm of Subdwellers 271 | -10/Subcaves | Ambushed by Subdwellers from Twisted Machinery 271 | -10/Subcaves | Ambushed by Subdwellers from Twisted Machinery 271 | -10/Subcaves | Ambushed by Subdwellers from Twisted Machinery 310 | -10/Subcaves | Build established: Mutant 321 | -10/Subcaves | Lost 4 allies 335 | -10/Subcaves | Core integrity fell below 50% 338 | -10/Subcaves | Core integrity fell below 20% 371 | -10/Subcaves | Destroyed by Q1-X6L(R) with Subdweller Laser Last Messages --------------- Wheel destroyed. Flight Unit fries itself beyond repair. Subatomizers dissect the Flight Unit. Flight Unit fries itself beyond repair. Ion Engine destroyed. 1E-JYQ(R) destroyed. Switching to secondary target: Q1-X6L(R). Med. Laser destroyed. Assault Rifle destroyed. Q1-X6L(R) affixes Scrap Shield Fragment to Scrap Shield. FS-QDY(R) destroyed. Acquired Sub. Machine Gun. PK-0UV(R) affixes Scrap Shield Fragment to Scrap Shield. Q1-X6L(R) affixes Scrap Shield Fragment to Scrap Shield. Acquired 18 matter. Aluminum Leg destroyed. PK-0UV(R) destroyed. Map ----- +----------------------------------------------------+ | ?????????????????????????????????????????????????? | | ?????????????????????????????????????????????????? | | ??????????????????####???????????????????????????? | | ??????????????????# ##??????????????????????????? | | ??????????????????## #??????????????????????????? | | ?????????????????### ##?????????????????????????? | | ?????????????????# &##????????????????????????? | | ?????????????????# &*% ##???????????????????????? | | ?????????????????# !=%#???????????????????????? | | ?????????????????## ###&=###?????????????????????? | | ????????????????#######& #?????????????????????? | | ??????????#??#### ## #?????????????????????? | | ???????### ?## #?????????????????????? | | ??????## ?# #?????????????????????? | | ????### ?# ## # #?????????????????????? | | ???## ?# ### #######?????????????????????? | | ??? ## #?# ####???????????????????????? | | ???? ## ### ##??????????????????????? | | ??????# ## #??????????????????????? | | ??????# #??????????????????????? | | ??????# ###R #??????????????????????? | | ??####?# #### ##??????????????????????? | | ?## #?### ###?# #???????????????????????? | | ## #???# ##???# ###?????????????????????? | | # ###"# ##????# #?????????????????????? | | # = #?????# @##?????????????????????? | | ## #?????## #??????????????????????? | | ?## *=%## ##??????## ??????????????????????? | | ??# !% ####????????# #?????????????????????? | | ### ####???????????# ?????????????????????? | | =!& ##?????????????? ????????????????????? | | !&%[ #??????????????? ???????????????????? | | !%]""#?????????????? # ???????????????????? | | =[""##?????????????? #### ??????????????????? | | "#???????????????? ###??? ?????????????????? | | #??????????????? #??????? ?????????????????? | | #?????????????? #??????????????????????????? | | # #?????????????#???????????????????????????? | | # #????????????????????????????????????????? | | # #????????????????????????????????????????? | | ## ####????????????????????????????????????????? | | ?#####???????????????????????????????????????????? | | ?????????????????????????????????????????????????? | | ?????????????????????????????????????????????????? | | ?????????????????????????????????????????????????? | | ?????????????????????????????????????????????????? | | ?????????????????????????????????????????????????? | | ?????????????????????????????????????????????????? | | ?????????????????????????????????????????????????? | | ?????????????????????????????????????????????????? | +----------------------------------------------------+ Best States ------------- Heat Dissipation 25 Energy Generation 10 Energy Capacity 250 Matter Stores 250 Matter Capacity 300 Sight Range 16 Terrain Scan Density 10 Armor Coverage 800 Evasion (%) 55 Item Schematics ----------------- None Robot Schematics ------------------ None Fabricated ------------ Nothing Repaired ---------- Nothing Studied --------- None Alien Tech Used ----------------- None Achievements -------------- None Challenges ------------ None Game ------ Seed DefenseSubatomicCapacitor Manual? 0 Play Time 00:11:33 Cumulative 8.7 hours Start 2025.11.21 @ 19:59:36 End 2025.11.22 @ 11:54:10 Sessions 2 Manual Loads 0 Difficulty Rogue Special Mode None Game No. 14 Rogue 14 Adventurer 0 Explorer 0 Win Type - Total 0 Types 0/0/0/0/0/0/0/0/0/0 Lore% 6 Gallery% 10 Achievement% 10 Wizard Run 0 Options --------- Layout 1 ASCII 0 Keyboard 1 Movement Arrows Keybinds 0 Fullscreen 0 Font 14/SmallcapsGlow Map View 55x38 Zoom Use 0% Tactical HUD 0 Map Filters NONE Filters NONE Steam 1 RUN: caa777e2-7121-47a7-8390-45a802f009a3